{"text_format":"1","workbook":"xlsx","n_sheets":3,"sheets":["Bruksanvisning","Fartsgrenseberegning","Datagrunnlag"],"not_rendered":{"charts":0,"images":2,"macros":1,"external_links":0,"defined_names":6,"comments":0,"pivot_tables":0},"unopened":[],"bounds":{"document_bytes":16777216,"sheet_cells":100000,"rows_first":2000,"rows_last":500,"rows_between":2000,"halvings":0,"cell_chars":16384,"cell_head_chars":4096},"cells_cut":0,"cells_raw":0,"read":"whole","date_system":"1900"}

{"sheet":"Bruksanvisning","index":0,"n_rows":48,"n_cols":8,"rows_kept":48,"cut":false,"hidden":false,"merged":[[21,7,21,8],[4,1,4,7],[14,1,14,7],[8,1,11,7],[5,1,6,7]]}
[]
[null,"Bruksanvisning og forutsetninger"]
[]
[]
[null,"Før bruk må man kjenne til teksten i fartsgrensekriteriene. Link til fartsgrensekriteriene:"]
[null,"Fartsgrensekriteriene 2021/01"]
[]
[]
[null,"Viktige premisser:\n\nModellen er delvis automatisert, men må likevel benyttes sammen med teksten i kriteriene. Resultatet må sjekkes mot faglig skjønn og ikke brukes ukritisk. \nTrafikantens forståelse for fartsgrensen er essensiell for at fartsgrensen skal ha effekt.\nBehov for fartsdempende tiltak/ombygging må vurderes samtidig med fartsgrense.  \nFor mye bruk av fartsgrense som trafikksikkerhetstiltak kan føre til lavere forståelse og overholdelse av fartsgrenser. \nMange lave fartsgrenser, altså i det nedre sjiktet av hva regnearket anbefaler, kan føre til en samlet trafikksikkerhetsreduksjon landet sett under ett, selv om det kan øke trafikksikkerheten i det ene punktet som vurderes der og da."]
[]
[]
[]
[]
[]
[null,"Modellberegningen og fartsgrensevurderingen bør gjøres av personell med dokumentert trafikkteknisk kompetanse, samt dokumentert vegfaglig kompetanse. \nLang relevant erfaring kan erstatte dokumentert kompetanse."]
[]
[]
[]
[]
[]
[]
[null,null,null,null,null,null,null,"ver.VD-2.2"]
[null,"Versjonshistorikk:"]
[null,"ver.2:","Endret beregning av avkjørsler, lagt til sikt"]
[null,null,"Endret beregning av kryss"]
[null,null,"Endret beregning av tilbud til myke trafikanter, maksimalt ti poeng per strekning"]
[null,null,"Fjernet boks for metreringsretning"]
[null,null,"Endret strekningsanbefalingen"]
[null,null,"Korrigert slik at det gis 10 poeng pr strekning ikke pr km i aktuelle tabeller"]
[null,null,"Satt inn boks som viser de forskjellige fargers vurderingskriterier"]
[null,null,"Mindre editorale endringer"]
[null,null,"Satt inn referanse til aktuelle kriterier i tabellen og oppdatert versjon"]
[null,"ver. 2.1","Endret til nedtreksbokser for enkelte av kriteriene, mindre feilrettinger"]
[null,null,"Fjernet vekttal og poengutvalg til eget ark med datagrunnlag for beregningen"]
[null,null,"Fjernet makro for kopiering av nye arkfaner"]
[null,null,"Endret feilberegning i blå summering."]
[null,null,"Lagt til en rekke datavalideringer for å unngå feil bruk."]
[null,null,"Fjernet poengoversikt og fargeforklaringer som var i egne bokser."]
[null,null,"Satt inn saksbehandler-, dato- og saksreferanse"]
[null,"2019-03-06","Utsendt"]
[null,"ver. 2.2","Ny beregningsmodell hvor avkjørsler gis høyere vekting, men maks 15 poeng per km, mot 10 per strekning tidligere"]
[null,null,"Trafikksikringstiltak gir nå minuspoeng"]
[null,null,"Avkjørsler har færre kategorier, kun bolig, fritidseiendom eller landbruk"]
[null,null,"Kryss har kun 1 kategori"]
[null,null,"Kollektivterminal er fjernet (da dette i hovedsak ligger i tettsteder)"]
[null,null,"Barn og unge er samlet i en kategori"]
[null,null,"Hyppig treningsaktivitet er fjernet fra modellen, men har fått egen tekst i kriteriene"]
[null,"2019-09-02","Utsendt"]

{"sheet":"Fartsgrenseberegning","index":1,"n_rows":39,"n_cols":8,"rows_kept":39,"cut":false,"hidden":false,"merged":[[9,5,9,6],[7,3,7,4],[25,1,25,7],[19,1,19,7],[14,2,16,2],[6,7,7,7],[9,1,10,1],[14,5,16,6],[9,3,9,4],[10,3,10,4],[12,1,12,7],[6,5,7,6],[8,3,8,4],[8,5,8,6],[13,5,13,6],[20,5,20,6],[37,1,37,7],[39,1,39,7],[11,1,11,6],[27,5,31,6],[10,5,10,6],[27,1,31,1],[34,3,34,7],[32,1,32,6],[38,2,38,6],[26,5,26,6],[21,5,23,6],[1,1,2,2],[27,2,29,2],[30,2,31,2],[24,1,24,6],[21,1,23,1],[3,1,3,2],[4,1,4,2],[5,1,5,2],[18,1,18,4],[6,3,6,4],[14,1,17,1],[1,5,1,6],[2,5,2,6],[3,5,3,6],[4,5,4,6],[5,5,5,6]]}
[]
[null,"Statens vegvesen",null,null,"Kommune:"]
[null,null,null," ","Sted:"]
[null,"Beregning av fartsgrense 60km/t",null,null,"Vegnr:"]
[null,{"$f":"Bruksanvisning!H22","v":"ver.VD-2.2"},null,null,"Fra Hp"]
[null,null,null,null,"Fra metrering"]
[null,"Initialer saksbehandler:",null,"Referanse/saksnummer, henvisning til konklusjon",null,"Lengde på strekning i meter, lengden bør være mellom 1000 og 3000 m."]
[null,"Dato for beregningen:"]
[null,"Myke trafikanter","Beskrivelse","Poenggiver, velg fra nedtrekksmeny",null,"Utdypende forklaring",null,"Sum "]
[null,"Fysisk tilrettelegging for gående og syklende","Langs veien","Ingen behov / Ingen tilbud",null,null,null,{"$f":"INDEX(Datagrunnlag!C7:D9,MATCH(Fartsgrenseberegning!D10,Myke_langsgående_poenggiver,0),2)","v":0}]
[null,null,"På tvers av vegen","Ingen tilrettelegging",null,"Det skal være et reelt behov for kryssing \n(ikke fra enkelthus til gang- og sykkelvegen, men til skole, institusjon, ballpark osv.)",null,{"$f":"INDEX(Datagrunnlag!C10:D13,MATCH(Fartsgrenseberegning!D11,myke_tversgående_poenggiver,0),2)","v":0}]
[null,null,null,null,null,null,null,{"$f":"IF(H7=\"\",\"\",IF(SUM(H10:H11)>9,10,(SUM(H10:H11))))","v":""}]
[]
[null,"Avkjørsler og kryss","Beskrivelse","Avkjørsel-/krysstype","Antall","Utdypende forklaring",null,"Sum"]
[null,"Tetthet av avkjørsler og kryss","Avkjørsler",{"$f":"Datagrunnlag!C20","v":"Avkjørsler til boliger"},null,"Bebyggelsens nærhet til vegen må vurderes, da boliger langt fra vegen medfører lavere aktivitetsnivå av gående og syklende",null,{"$f":"IFERROR(IF(E15>0,E15*Datagrunnlag!D20,\"\")*(1000/H7),\" \")","v":" "}]
[null,null,null,{"$f":"Datagrunnlag!C21","v":"Avkjørsler til fritidseiendom"},null,null,null,{"$f":"IFERROR(IF(E16>0,E16*Datagrunnlag!D21,\"\")*(1000/H7),\" \")","v":" "}]
[null,null,null,{"$f":"Datagrunnlag!C22","v":"Avkjørsler landbruk (driftsavkjørsel i bruk)"},null,null,null,{"$f":"IFERROR(IF(E17>0,E17*Datagrunnlag!D22,\"\")*(1000/H7),\" \")","v":" "}]
[null,null,"Kryss",{"$f":"Datagrunnlag!C23","v":"Antall kryss, uavhengig av funksjon"},null,{"$f":"SUM(H15:H18)","v":0},null,{"$f":"IFERROR(IF(E18>0,E18*Datagrunnlag!D23,\"\")*(1000/H7),\" \")","v":" "}]
[null,"Maksimalt 15 poeng pr. km",null,null,null,null,{"$f":"IF(F18>25*(H7/1000),\"Vurder om dette er tettbygd strøk\",\" \")","v":" "},{"$f":"MIN(15*H7/1000,SUMIF(H15:H18,\">0\",H15:H18))","v":0}]
[]
[null,"Barn, eldre, kollektiv","Beskrivelse","Poenggivning",null,"Utdypende forklaring",null,"Sum"]
[null,"Tilbud/virksomhet som gir aktivitet av gående og syklende på kjøreveg","Barn og unge",{"$f":"Datagrunnlag!G7","v":"Barne- og ungdomsskoleveg"},false,null,null,{"$f":"IF(E22=TRUE,Datagrunnlag!H7,\"\")","v":""}]
[null,null,"Eldre/syke",{"$f":"Datagrunnlag!G8","v":"Sykehjem/ aldershjem/institusjon"},false,null,null,{"$f":"IF(E23=TRUE,Datagrunnlag!H8,\"\")","v":""}]
[null,null,"Kollektivtilbud",{"$f":"Datagrunnlag!G9","v":"Bussholdeplass(er) på strekningen"},false,null,null,{"$f":"IF(E24=TRUE,Datagrunnlag!H9,\"\")","v":""}]
[null,null,null,null,null,null,null,{"$f":"IF(H7=\"\",\"\",IF(SUM(H22:H24)>9,10,(SUM(H22:H24))))","v":""}]
[]
[null,"Næring og fritid","Beskrivelse","Poenggivning","Antall","Utdypende forklaring",null,"Sum"]
[null,"Annen virksomhet som gir aktivitet av gående og syklende","Nærings-virksomhet",{"$f":"Datagrunnlag!G20","v":"Serveringsted"},null,"Tilbudet må genere aktivitet av gående og syklende. Kombinerte virksomheter telles som én. Se ellers veiledning for supplerende info. ",null,{"$f":"IF(E28>0,E28*Datagrunnlag!H20,\"\")","v":""}]
[null,null,null,{"$f":"Datagrunnlag!G21","v":"Overnattingsted"},null,null,null,{"$f":"IF(E29>0,E29*Datagrunnlag!H21,\"\")","v":""}]
[null,null,null,{"$f":"Datagrunnlag!G22","v":"Dagligvarebutikk/kiosk/ bensinstasjon"},null,null,null,{"$f":"IF(E30>0,E30*Datagrunnlag!H22,\"\")","v":""}]
[null,null,"Fritids-aktivitet",{"$f":"Datagrunnlag!G23","v":"Større utfartssted/turområde"},null,null,null,{"$f":"IF(E31>0,E31*Datagrunnlag!H23,\"\")","v":""}]
[null,null,null,{"$f":"Datagrunnlag!G24","v":"Idretts-/lekeanlegg"},null,null,null,{"$f":"IF(E32>0,E32*Datagrunnlag!H24,\"\")","v":""}]
[null,"Maksimalt 10 poeng pr. strekning",null,null,null,null,null,{"$f":"IF(H7=\"\",\"\",IF(SUM(H28:H32)>=10,10,SUM(H28:H32)))","v":""}]
[]
[null,"Totalt antall poeng for strekningen:",{"$f":"IF(H7=\"\",\"\",(ROUNDUP(H33+H25+H19+H12,0)))","v":""}]
[]
[]
[null,"Fartsgrensevurdering 60 km/t"]
[null,null,{"$f":"INDEX(Datagrunnlag!E62:F122,MATCH(Fartsgrenseberegning!C35,Datagrunnlag!E62:E122,0),2)","v":{"$error":"#N/A"}}]

{"sheet":"Datagrunnlag","index":2,"n_rows":122,"n_cols":8,"rows_kept":122,"cut":false,"hidden":true,"merged":[[19,1,21,1],[23,0,26,0],[6,0,12,0],[24,6,27,6],[19,0,22,0],[8,5,9,5],[19,4,22,4],[19,5,21,5],[22,5,25,5],[23,4,25,4],[6,4,9,4],[58,0,58,7],[59,0,59,1],[59,2,59,3],[59,4,59,5],[59,6,59,7]]}
["Datagrunnlag for ark Fartsgrenseberegning. Ending her gir utslag i beregningen, og skal ikke gjøres uten etter godkjenning fra VD."]
[]
[]
["Datagrunnlag for poenggivergruppe 1"]
[]
["Myke trafikanter","Beskrivelse","Poenggiver, kun en skal velges","Poeng","Barn, eldre, kollektiv","Beskrivelse","Poenggivning","Poeng"]
["Fysisk tilrettelegging for gående og syklende. Før man velger å gi poeng må det være vurdert et behov for tilrettelegging.","Langsgående, kun ett kryss","Ingen behov / Ingen tilbud",0,"Virksomhet som gir aktivitet av gående og syklende. ","Barn og unge","Barne- og ungdomsskoleveg",3]
[null,null,"Gang- og sykkelveg på feil side av bebyggelse",-2,null,"Eldre/syke","Sykehjem/ aldershjem/institusjon",2]
[null,null,"Gang- og sykkelveg",-4,null,"Tilbud til alle","Bussholdeplass(er) på strekningen",1]
[null,null,null,null,null,null,"Kollektivterminal på strekningen",3]
[null,"Tverrgående, kun ett kryss","Ingen tilrettelegging",0]
[null,null,"Tilrettelagt kryssing",-3]
[null,null,"Planskilt (Under- eller overgang)",-5]
[]
[]
[]
[]
[]
["Avkjørsler og kryss","Beskrivelse","Avkjørsle-/krysstype","Vekttall","Næring og fritid","Beskrivelse","Poenggivning","Poeng"]
["Tetthet avkjørsler og kryss","Avkjørsler, antall","Avkjørsler til boliger",1.5,"Annen virksomhet som gir aktivitet av gående og syklende","Nærings-virksomhet","Serveringsted",1]
[null,null,"Avkjørsler til fritidseiendom",0.5,null,null,"Overnattingsted",1]
[null,null,"Avkjørsler landbruk (driftsavkjørsel i bruk)",0.5,null,null,"Dagligvarebutikk/kiosk/ bensinstasjon",1]
[null,"Kryss","Antall kryss, uavhengig av funksjon",1.5,null,"Fritids-aktivitet","Større utfartssted/turområde",1]
["Antallet vektes og deles på strekningslengde. Dette summeres til maksimalt 15 poeng pr strekning",null,null,null,"Det gis maksimalt 10 poeng pr 1.000m",null,"Idretts-/lekeanlegg",2]
[null,null,null,null,null,null,"Hyppig treningsaktivitet med sykkel-/rulleski, velg poeng fra nedtrekksmeny","ingen"]
[null,null,null,null,null,null,null,2]
[null,null,null,null,null,null,null,3]
[null,null,null,null,null,null,null,4]
[]
[]
[]
[]
[]
[]
[]
["Tekster for fartsgrenseanbefaling"]
[]
[null," ->","Anbefalt fartsgrense"]
[null," ->","Fartsgrensen kan beholdes/benyttes etter en samlet vurdering"]
[]
[null," ->","Fartsgrensen bør ikke benyttes"]
[]
[null," ->","Fartsgrensen er ikke aktuell etter kriteriene over"]
[]
[]
[]
[]
[]
[]
[]
[]
[]
[]
[]
[]
[]
[]
[]
["Tabell for valg av fartsgrense for vegstrekning"]
[80,null,70,null,60,null,50]
["Poeng","Konklusjon","Poeng",null,"Poeng",null,"Poeng"]
[0,"Anbefalt fartsgrense",0,"Fartsgrense som kan være aktuell dersom andre kriterier er oppfylt",0,"Fartsgrensen er ikke aktuell etter vurderingene over",0,"Fartsgrense som kan være aktuell dersom andre kriterier er oppfylt"]
[1,"Anbefalt fartsgrense",1,"Fartsgrense som kan være aktuell dersom andre kriterier er oppfylt",1,"Fartsgrensen er ikke aktuell etter vurderingene over",1,"Fartsgrense som kan være aktuell dersom andre kriterier er oppfylt"]
[2,"Anbefalt fartsgrense",2,"Fartsgrense som kan være aktuell dersom andre kriterier er oppfylt",2,"Fartsgrensen er ikke aktuell etter vurderingene over",2,"Fartsgrense som kan være aktuell dersom andre kriterier er oppfylt"]
[3,"Anbefalt fartsgrense",3,"Fartsgrense som kan være aktuell dersom andre kriterier er oppfylt",3,"Fartsgrensen er ikke aktuell etter vurderingene over",3,"Fartsgrense som kan være aktuell dersom andre kriterier er oppfylt"]
[4,"Anbefalt fartsgrense",4,"Fartsgrense som kan være aktuell dersom andre kriterier er oppfylt",4,"Fartsgrensen er ikke aktuell etter vurderingene over",4,"Fartsgrense som kan være aktuell dersom andre kriterier er oppfylt"]
[5,"Anbefalt fartsgrense",5,"Fartsgrense som kan være aktuell dersom andre kriterier er oppfylt",5,"Fartsgrensen er ikke aktuell etter vurderingene over",5,"Fartsgrense som kan være aktuell dersom andre kriterier er oppfylt"]
[6,"Anbefalt fartsgrense",6,"Fartsgrense som kan være aktuell dersom andre kriterier er oppfylt",6,"Fartsgrensen er ikke aktuell etter vurderingene over",6,"Fartsgrense som kan være aktuell dersom andre kriterier er oppfylt"]
[7,"Anbefalt fartsgrense",7,"Fartsgrense som kan være aktuell dersom andre kriterier er oppfylt",7,"Fartsgrensen er ikke aktuell etter vurderingene over",7,"Fartsgrense som kan være aktuell dersom andre kriterier er oppfylt"]
[8,"Anbefalt fartsgrense",8,"Fartsgrense som kan være aktuell dersom andre kriterier er oppfylt",8,"Fartsgrensen er ikke aktuell etter vurderingene over",8,"Fartsgrense som kan være aktuell dersom andre kriterier er oppfylt"]
[9,"Anbefalt fartsgrense",9,"Fartsgrense som kan være aktuell dersom andre kriterier er oppfylt",9,"Fartsgrensen er ikke aktuell etter vurderingene over",9,"Fartsgrense som kan være aktuell dersom andre kriterier er oppfylt"]
[10,"Anbefalt fartsgrense",10,"Anbefalt fartsgrense",10,"Fartsgrensen kan beholdes/benyttes etter en samlet vurdering",10,"Fartsgrense som kan være aktuell dersom andre kriterier er oppfylt"]
[11,"Anbefalt fartsgrense",11,"Anbefalt fartsgrense",11,"Fartsgrensen kan beholdes/benyttes etter en samlet vurdering",11,"Fartsgrense som kan være aktuell dersom andre kriterier er oppfylt"]
[12,"Anbefalt fartsgrense",12,"Anbefalt fartsgrense",12,"Fartsgrensen kan beholdes/benyttes etter en samlet vurdering",12,"Fartsgrense som kan være aktuell dersom andre kriterier er oppfylt"]
[13,"Anbefalt fartsgrense",13,"Anbefalt fartsgrense",13,"Fartsgrensen kan beholdes/benyttes etter en samlet vurdering",13,"Fartsgrense som kan være aktuell dersom andre kriterier er oppfylt"]
[14,"Anbefalt fartsgrense",14,"Anbefalt fartsgrense",14,"Fartsgrensen kan beholdes/benyttes etter en samlet vurdering",14,"Fartsgrense som kan være aktuell dersom andre kriterier er oppfylt"]
[15,"Fartsgrense som kan beholdes/benyttes etter en samlet vurdering",15,"Fartsgrense som kan beholdes/benyttes etter en samlet vurdering",15,"Anbefalt fartsgrense",15,"Fartsgrense som kan beholdes/benyttes etter en samlet vurdering"]
[16,"Fartsgrense som kan beholdes/benyttes etter en samlet vurdering",16,"Fartsgrense som kan beholdes/benyttes etter en samlet vurdering",16,"Anbefalt fartsgrense",16,"Fartsgrense som kan beholdes/benyttes etter en samlet vurdering"]
[17,"Fartsgrense som kan beholdes/benyttes etter en samlet vurdering",17,"Fartsgrense som kan beholdes/benyttes etter en samlet vurdering",17,"Anbefalt fartsgrense",17,"Fartsgrense som kan beholdes/benyttes etter en samlet vurdering"]
[18,"Fartsgrense som kan beholdes/benyttes etter en samlet vurdering",18,"Fartsgrense som kan beholdes/benyttes etter en samlet vurdering",18,"Anbefalt fartsgrense",18,"Fartsgrense som kan beholdes/benyttes etter en samlet vurdering"]
[19,"Fartsgrense som kan beholdes/benyttes etter en samlet vurdering",19,"Fartsgrense som kan beholdes/benyttes etter en samlet vurdering",19,"Anbefalt fartsgrense",19,"Fartsgrense som kan beholdes/benyttes etter en samlet vurdering"]
[20,"Fartsgrense som ikke bør benyttes",20,"Fartsgrense som ikke bør benyttes",20,"Anbefalt fartsgrense",20,"Fartsgrense som kan beholdes/benyttes etter en samlet vurdering"]
[21,"Fartsgrense som ikke bør benyttes",21,"Fartsgrense som ikke bør benyttes",21,"Anbefalt fartsgrense",21,"Fartsgrense som kan beholdes/benyttes etter en samlet vurdering"]
[22,"Fartsgrense som ikke bør benyttes",22,"Fartsgrense som ikke bør benyttes",22,"Anbefalt fartsgrense",22,"Fartsgrense som kan beholdes/benyttes etter en samlet vurdering"]
[23,"Fartsgrense som ikke bør benyttes",23,"Fartsgrense som ikke bør benyttes",23,"Anbefalt fartsgrense",23,"Fartsgrense som kan beholdes/benyttes etter en samlet vurdering"]
[24,"Fartsgrense som ikke bør benyttes",24,"Fartsgrense som ikke bør benyttes",24,"Anbefalt fartsgrense",24,"Fartsgrense som kan beholdes/benyttes etter en samlet vurdering"]
[25,"Fartsgrense som ikke bør benyttes",25,"Fartsgrense som ikke bør benyttes",25,"Fartsgrensen kan beholdes/benyttes etter en samlet vurdering",25,"Anbefalt fartsgrense"]
[26,"Fartsgrense som ikke bør benyttes",26,"Fartsgrense som ikke bør benyttes",26,"Fartsgrensen kan beholdes/benyttes etter en samlet vurdering",26,"Anbefalt fartsgrense"]
[27,"Fartsgrense som ikke bør benyttes",27,"Fartsgrense som ikke bør benyttes",27,"Fartsgrensen kan beholdes/benyttes etter en samlet vurdering",27,"Anbefalt fartsgrense"]
[28,"Fartsgrense som ikke bør benyttes",28,"Fartsgrense som ikke bør benyttes",28,"Fartsgrensen kan beholdes/benyttes etter en samlet vurdering",28,"Anbefalt fartsgrense"]
[29,"Fartsgrense som ikke bør benyttes",29,"Fartsgrense som ikke bør benyttes",29,"Fartsgrensen kan beholdes/benyttes etter en samlet vurdering",29,"Anbefalt fartsgrense"]
[30,"Fartsgrense som ikke bør benyttes",30,"Fartsgrense som ikke bør benyttes",30,"Fartsgrensen bør ikke benyttes",30,"Anbefalt fartsgrense"]
[31,"Fartsgrense som ikke bør benyttes",31,"Fartsgrense som ikke bør benyttes",31,"Fartsgrensen bør ikke benyttes",31,"Anbefalt fartsgrense"]
[32,"Fartsgrense som ikke bør benyttes",32,"Fartsgrense som ikke bør benyttes",32,"Fartsgrensen bør ikke benyttes",32,"Anbefalt fartsgrense"]
[33,"Fartsgrense som ikke bør benyttes",33,"Fartsgrense som ikke bør benyttes",33,"Fartsgrensen bør ikke benyttes",33,"Anbefalt fartsgrense"]
[34,"Fartsgrense som ikke bør benyttes",34,"Fartsgrense som ikke bør benyttes",34,"Fartsgrensen bør ikke benyttes",34,"Anbefalt fartsgrense"]
[35,"Fartsgrense som ikke bør benyttes",35,"Fartsgrense som ikke bør benyttes",35,"Fartsgrensen bør ikke benyttes",35,"Anbefalt fartsgrense"]
[36,"Fartsgrense som ikke bør benyttes",36,"Fartsgrense som ikke bør benyttes",36,"Fartsgrensen bør ikke benyttes",36,"Anbefalt fartsgrense"]
[37,"Fartsgrense som ikke bør benyttes",37,"Fartsgrense som ikke bør benyttes",37,"Fartsgrensen bør ikke benyttes",37,"Anbefalt fartsgrense"]
[38,"Fartsgrense som ikke bør benyttes",38,"Fartsgrense som ikke bør benyttes",38,"Fartsgrensen bør ikke benyttes",38,"Anbefalt fartsgrense"]
[39,"Fartsgrense som ikke bør benyttes",39,"Fartsgrense som ikke bør benyttes",39,"Fartsgrensen bør ikke benyttes",39,"Anbefalt fartsgrense"]
[40,"Fartsgrense som ikke bør benyttes",40,"Fartsgrense som ikke bør benyttes",40,"Fartsgrensen bør ikke benyttes",40,"Anbefalt fartsgrense"]
[41,"Fartsgrense som ikke bør benyttes",41,"Fartsgrense som ikke bør benyttes",41,"Fartsgrensen bør ikke benyttes",41,"Anbefalt fartsgrense"]
[42,"Fartsgrense som ikke bør benyttes",42,"Fartsgrense som ikke bør benyttes",42,"Fartsgrensen bør ikke benyttes",42,"Anbefalt fartsgrense"]
[43,"Fartsgrense som ikke bør benyttes",43,"Fartsgrense som ikke bør benyttes",43,"Fartsgrensen bør ikke benyttes",43,"Anbefalt fartsgrense"]
[44,"Fartsgrense som ikke bør benyttes",44,"Fartsgrense som ikke bør benyttes",44,"Fartsgrensen bør ikke benyttes",44,"Anbefalt fartsgrense"]
[45,"Fartsgrense som ikke bør benyttes",45,"Fartsgrense som ikke bør benyttes",45,"Fartsgrensen bør ikke benyttes",45,"Anbefalt fartsgrense"]
[46,"Fartsgrense som ikke bør benyttes",46,"Fartsgrense som ikke bør benyttes",46,"Fartsgrensen bør ikke benyttes",46,"Anbefalt fartsgrense"]
[47,"Fartsgrense som ikke bør benyttes",47,"Fartsgrense som ikke bør benyttes",47,"Fartsgrensen bør ikke benyttes",47,"Anbefalt fartsgrense"]
[48,"Fartsgrense som ikke bør benyttes",48,"Fartsgrense som ikke bør benyttes",48,"Fartsgrensen bør ikke benyttes",48,"Anbefalt fartsgrense"]
[49,"Fartsgrense som ikke bør benyttes",49,"Fartsgrense som ikke bør benyttes",49,"Fartsgrensen bør ikke benyttes",49,"Anbefalt fartsgrense"]
[50,"Fartsgrense som ikke bør benyttes",50,"Fartsgrense som ikke bør benyttes",50,"Fartsgrensen bør ikke benyttes",50,"Anbefalt fartsgrense"]
[51,"Fartsgrense som ikke bør benyttes",51,"Fartsgrense som ikke bør benyttes",51,"Fartsgrensen bør ikke benyttes",51,"Anbefalt fartsgrense"]
[52,"Fartsgrense som ikke bør benyttes",52,"Fartsgrense som ikke bør benyttes",52,"Fartsgrensen bør ikke benyttes",52,"Anbefalt fartsgrense"]
[53,"Fartsgrense som ikke bør benyttes",53,"Fartsgrense som ikke bør benyttes",53,"Fartsgrensen bør ikke benyttes",53,"Anbefalt fartsgrense"]
[54,"Fartsgrense som ikke bør benyttes",54,"Fartsgrense som ikke bør benyttes",54,"Fartsgrensen bør ikke benyttes",54,"Anbefalt fartsgrense"]
[55,"Fartsgrense som ikke bør benyttes",55,"Fartsgrense som ikke bør benyttes",55,"Fartsgrensen bør ikke benyttes",55,"Anbefalt fartsgrense"]
[56,"Fartsgrense som ikke bør benyttes",56,"Fartsgrense som ikke bør benyttes",56,"Fartsgrensen bør ikke benyttes",56,"Anbefalt fartsgrense"]
[57,"Fartsgrense som ikke bør benyttes",57,"Fartsgrense som ikke bør benyttes",57,"Fartsgrensen bør ikke benyttes",57,"Anbefalt fartsgrense"]
[58,"Fartsgrense som ikke bør benyttes",58,"Fartsgrense som ikke bør benyttes",58,"Fartsgrensen bør ikke benyttes",58,"Anbefalt fartsgrense"]
[59,"Fartsgrense som ikke bør benyttes",59,"Fartsgrense som ikke bør benyttes",59,"Fartsgrensen bør ikke benyttes",59,"Anbefalt fartsgrense"]
[60,"Fartsgrense som ikke bør benyttes",60,"Fartsgrense som ikke bør benyttes",60,"Fartsgrensen bør ikke benyttes",60,"Anbefalt fartsgrense"]